Cogmind - Beta 9.6 @@@ ROGUE MODE // 2020.08.01 @ 01:31:54 // Winter2019/RPGLIKE Player: Hermelin Result: Destroyed by as-57614 with Assembled Rifle Performance ------------- Evolutions (0) 0 Regions Visited (0) 0 Robots Destroyed (8) 40 Value Destroyed (15) 15 Prototype IDs (0) 0 Alien Tech Used (0) 0 Bonus (0) 0 TOTAL SCORE: 55 Bonus ------- None Cogmind --------- Core Integrity 0/600 Matter 234/300 Energy 250/250 System Corruption 0% Temperature Cool (0) Movement Rolling (80) Location -11/Scrapyard Parts ------- > --- POWER (1) -------- Ion Engine > --- PROPULSION (2) --- Light Treads Wheel > --- UTILITY (2) ------ Improved Terrain Scanner > --- WEAPON (2) ------- Assault Rifle Light Assault Rifle > --- INVENTORY (2) ---- Light Ion Engine Light Assault Rifle Peak State ------------ > --- POWER ------------ Ion Engine > --- PROPULSION ------- Light Treads Wheel > --- UTILITY ---------- Improved Terrain Scanner > --- WEAPON ----------- Assault Rifle Light Assault Rifle > --- INVENTORY -------- Light Ion Engine Light Assault Rifle [Rating: 7] Favorites ----------- Power Ion Engine Engine Ion Engine Propulsion Light Treads Treads Light Treads Wheel Wheel Utility Improved Terrain Scanner Device Improved Terrain Scanner Weapon Light Assault Rifle Ballistic Gun Light Assault Rifle Build | -11 ------- Run | Scr Slots Evolved 3 | 3 Power . | . Propulsion 1 | 1 Utility 1 | 1 Weapon 1 | 1 Parts Attached 6 | 6 Power 1 | 1 Engine 1 | 1 Core . | . Reactor . | . Propulsion 2 | 2 Treads 1 | 1 Leg . | . Wheel 1 | 1 Hover . | . Flight . | . Utility 1 | 1 Device 1 | 1 Storage . | . Processor . | . Hackware . | . Protection . | . Artifact . | . Weapon 2 | 2 Energy Gun . | . Energy Cannon . | . Ballistic Gun 2 | 2 Ballistic Cannon . | . Launcher . | . Special Weapon . | . Impact Weapon . | . Slashing Weapon . | . Piercing Weapon . | . Special Melee Weapon . | . Unidentified Prototypes . | . Parts Lost . | . Power . | . Propulsion . | . Utility . | . Weapon . | . Highest Loss Streak . | . Average Slot Usage (%) . | . Naked Turns . | . Heaviest Build 9 | 9 Greatest Support 25 | 25 Greatest Overweight (x) . | . Average Overweight (x) . | . Largest Inventory Capacity 2 | 2 Average Capacity 1 | 1 Most Carried 2 | 2 Average Carried 1 | 1 Final Capacity 2 | 2 Final Carried 2 | 2 Class Distribution -------------------- None Dominant Class ---------------- None Resources | -11 ----------- Run | Scr Matter Collected 290 | 290 Remotely . | . Salvage Created 104 | 104 Parts 4 | 4 Haulers Intercepted . | . Recyclers Shooed . | . Parts Field Recycled . | . Retrieved Matter . | . Parts Self-Destructed . | . Prevented . | . Kills | -11 ------- Run | Scr Combat Hostiles Destroyed 5 | 5 Guns 5 | 5 Classes Destroyed 3 | 3 Worker 1 | 1 Tunneler 2 | 2 Assembled 5 | 5 Best Kill Streak 5 | 5 Combat Bots Only 5 | 5 Max Kills in Single Turn 2 | 2 Gunslinging 1 | 1 Exploded . | . Melee . | . Uniques/NPCs Destroyed . | . Combat | -11 -------- Run | Scr Damage Taken 783 | 783 Core 638 | 638 Absorbed by Shields . | . Redirected to Core 501 | 501 Core Remaining (%) . | . Volleys Fired 24 | 24 Largest 2 | 2 Hottest 40 | 40 Shots Fired 48 | 48 Gun 48 | 48 Cannon . | . Launcher . | . Special . | . Kinetic 48 | 48 Thermal . | . Explosive . | . Electromagnetic . | . Robot Hit Streak 8 | 8 Robot Miss Streak 5 | 5 Penetration Max . | . Secondary Targets 4 | 4 Max Gunslinging Chain 1 | 1 Shots Hit Robots 29 | 29 Core Hits 14 | 14 Critical Hits . | . Critical Kills . | . Critical Parts Destroyed . | . Melee Attacks . | . Impact . | . Slashing . | . Piercing . | . Sneak Attacks . | . Combat Hostiles . | . Follow-up Attacks . | . Damage Inflicted 291 | 291 Guns 291 | 291 Cannons . | . Explosions . | . Melee . | . Ramming . | . Kinetic 291 | 291 Thermal . | . Explosive . | . Electromagnetic . | . Impact . | . Slashing . | . Piercing . | . Highest Corruption . | . Average Corruption . | . Corruption Purged . | . Overload Shots . | . Overflow Damage . | . Projectiles . | . Explosions . | . Melee . | . Knockbacks . | . Impact . | . Kinetic . | . Secondary . | . Self-Inflicted Damage . | . Shots . | . Rammed . | . Targets Rammed . | . Kicked . | . Crushed . | . Highest Temperature 40 | 40 Average Temperature 29 | 29 Received Heat Transfer 80 | 80 Siege Activations . | . Robots Corrupted . | . Combat Hostiles . | . Parts Fried . | . Impact Corruptions . | . Robots Melted . | . Combat Hostiles . | . Parts Melted . | . Heat Transferred . | . Parts Sabotaged . | . Parts Stolen . | . Parts Stripped . | . Power Chain Reactions . | . Missiles Intercepted . | . Alert | -11 ------- Run | Scr Peak Influence 15 | 15 Average Influence 1 | 1 Maximum Alert Level . | . Low Security (%) 100 | 100 Level 1 . | . Level 2 . | . Level 3 . | . Level 4 . | . Level 5 . | . High Security . | . Max Security . | . Squads Dispatched . | . Investigation . | . Extermination . | . Reinforcement . | . Assault . | . Garrison . | . Intercept . | . Construction Impeded . | . Haulers Reinforced . | . Stealth | -11 --------- Run | Scr Distress Signals . | . Communications Jammed . | . Distress Signals . | . Times Spotted 10 | 10 Peak Tracking Total 7 | 7 Tactical Retreats 1 | 1 Traps | -11 ------- Run | Scr Traps Triggered . | . Indirectly . | . Trap Hack Attempts . | . Triggered . | . Disarmed . | . Reprogrammed . | . Reused . | . Traps Extracted . | . Installed . | . Triggered . | . Machines | -11 ---------- Run | Scr Machines Disabled . | . Max in Single Turn . | . Machines Sabotaged . | . Garrisons Compromised . | . Overloaded Fab Kills . | . Fab Network Shutdowns . | . Hacking | -11 --------- Run | Scr Machines Accessed . | . Terminals . | . Fabricators . | . Repair Stations . | . Recycling Units . | . Scanalyzers . | . Garrison Access . | . Total Hacks . | . Successful . | . Failed . | . Catastrophic . | . Database Lockouts . | . Manual . | . Terminals . | . Fabricators . | . Repair Stations . | . Recycling Units . | . Scanalyzers . | . Garrison Access . | . Terminal Hacks . | . Fabricator Hacks . | . Repair Station Hacks . | . Recycling Unit Hacks . | . Scanalyzer . | . Garrison Access Hacks . | . Unauthorized Hacks . | . Terminals . | . Fabricators . | . Repair Stations . | . Recycling Units . | . Scanalyzers . | . Garrison Access . | . Data Cores Recovered . | . Used . | . Hacking Detections . | . Full Trace Events . | . Feedback Events . | . Feedback Blocked . | . Robot Schematics Acquired . | . Robots Built . | . Matter . | . Time . | . Total Robot Build Rating . | . Part Schematics Acquired . | . Parts Built . | . Matter . | . Time . | . Total Part Build Rating . | . Parts Repaired . | . Time . | . Parts Recycled . | . Recycled Matter . | . Retrieved Matter . | . Retrieved Components . | . Parts Scanalyzed . | . Part Schematics Acquired . | . Parts Damaged . | . Bothacking | -11 ------------ Run | Scr Used RIF Installer . | . Robots Hacked . | . Non-combat . | . Combat . | . Robot Hacks Applied . | . Relay Couplers Released . | . Robots Rewired . | . Allies Hacked . | . Hacks Repelled . | . Allies | -11 -------- Run | Scr Total Allies . | . Largest Group . | . Highest-Rated Group . | . Highest-Rated Ally . | . Total Orders . | . Ally Attacks . | . Total Damage . | . Kills . | . Allies Corrupted . | . Allies Melted . | . Intel | -11 ------- Run | Scr Robot Analysis Total . | . Derelict Logs Recovered . | . Drone Launches . | . Drone Recoveries . | . Exploration | -11 ------------- Run | Scr Turns Passed 3820 | 3820 Spaces Moved 121 | 121 Core 4 | 4 Treads 8 | 8 Legs . | . Wheels 109 | 109 Hover . | . Flight . | . Fastest Speed 50 | 50 Average Speed 84 | 84 Slowest Speed 160 | 160 Overloaded Moves . | . Propulsion Burnouts . | . Robots Hopped . | . Cave-ins Triggered . | . Exploration Rate (%) 7 | 7 Regions Visited . Branch Regions . Pre-discovered Areas . | . Known Exits Taken . | . Unknown Exits Taken . | . Scrap Searched . | . Spaces Dug . | . Terrain Destroyed . | . Melee . | . Projectile . | . AOE . | . Actions | -11 --------- Run | Scr Total 3794 | 3794 Wait 3640 | 3640 Move 121 | 121 Hop . | . Pick Up 2 | 2 Fast Attach 6 | 6 Attach . | . Detach . | . Swap . | . Drop . | . Fire 24 | 24 Melee . | . Ram . | . Kick . | . Crush . | . Escape Stasis . | . Rewire . | . Trap . | . Miscellaneous 1 | 1 Route ------- -11/Scrapyard (discovered 1 exit: [*Mat]) History --------- Turn | Location | Event 8 | -11/Scrapyard | Discovered new exit (range 16) 10 | -11/Scrapyard | Upgraded with Propulsion slot (x1) 10 | -11/Scrapyard | Upgraded with Utility slot (x1) 10 | -11/Scrapyard | Upgraded with Weapon slot (x1) 3736 | -11/Scrapyard | Assembled infested the area 3793 | -11/Scrapyard | Core integrity fell below 50% 3806 | -11/Scrapyard | Core integrity fell below 20% 3821 | -11/Scrapyard | Destroyed by as-57614 with Assembled Rifle Last Messages --------------- 00331_ K-01 Serf collects debris. 00335_ T-07 Excavator is excavating. 00338_ K-01 Serf collects debris. 00339_ T-07 Excavator is excavating. 00341_ K-01 Serf collects debris. 00343_ T-07 Excavator is excavating. 00345_ K-01 Serf collects debris. 00722_ T-07 Excavator is excavating. 01210_ K-01 Serf collects debris. 03736_ ALERT: Infestation in the scrapyard, dispatching Demolisher response squad. 03779_ K-01 Serf destroyed. 03786_ as-38795 destroyed. 03786_ Switching to secondary target: as-60782. 03792_ as-60782 destroyed. 03792_ Switching to secondary target: as-12419. 03798_ as-12419 destroyed. 03798_ Switching to secondary target: as-12475. 03798_ as-12475 destroyed. 03800_ as-57467 destroyed. 03800_ Switching to secondary target: as-02286. Map ----- +----------------------------------------------------+ | ?????????????????????????????????????????????????? | | ?????????????????????????????????????????????????? | | ?????????????????????????????????????????????????? | | ??????????????????????????????#??????????????????? | | ?????????????????????????????????????????????????? | | ???????????????????????????#?#?#?????????????????? | | ?????????????????????????????#???#???????????????? | | ????????????????????????????????#??#?#???????????? | | ???????????????#??????#???????######??????#??????? | | ????????????????? ## #?######?##???#??????? | | ???????????????# ## #?#########?????????? | | ?????????????### ## # ## ?######???????? | | ????????????#### ## # ## ###?##??#???? | | ???????????######### ###### ## ## #####??##???? | | ?????????? # ##?#######???? | | ????????? # ########????? | | ????????? # ######???? | | ????????## # ######?#? | | ???????? # # ####?#??? | | ??????? ! # ## ######?? | | ???????# ################# ###############?? | | ???????# ############## ############?? | | ???????# # ##### % ######### ##?? | | ???????# # = =##### a########## ??? | | ?????? # # #####% =% a ? | | ?????? = @ a= ? | | ???????# a% ########## #?? | | ???????#### ### ##### < #########?#??? | | ???????# # ##### ############?? | | ???????# # = #########################?? | | ???????? #### ###########################??? | | ???????? #### ########################?##??? | | ????????? #### # ##################?##???? | | ????????? #### # #####################???? | | ??????????######## # ################?##?????? | | ???????????####### # ##################??????? | | ????????????###### # ##################??????? | | ?????????????##### # ################????????? | | ??????????????? # # ###############?????????? | | ?????????????????# # #############???????????? | | ????????????????????# ########?#??????????????? | | ??????????????????????# ?#? ?#?????????????????? | | ?????????????????????????????????????????????????? | | ?????????????????????????????????????????????????? | | ?????????????????????????????????????????????????? | | ?????????????????????????????????????????????????? | | ?????????????????????????????????????????????????? | | ?????????????????????????????????????????????????? | | ?????????????????????????????????????????????????? | | ?????????????????????????????????????????????????? | +----------------------------------------------------+ Best States ------------- Heat Dissipation 25 Energy Generation 10 Energy Capacity 250 Matter Stores 294 Matter Capacity 300 Sight Range 17 Terrain Scan Range 16 Terrain Scan Density 210 Evasion (%) 44 Recoil Reduction 1 Offensive Hacking 5 Defensive Hacking 5 Item Schematics ----------------- None Robot Schematics ------------------ None Fabricated ------------ Nothing Alien Tech Used ----------------- None Achievements -------------- None Challenges ------------ None RPGLIKE | -11 --------- Run | Scr Levels Raised . | . XP Earned 3000 | 3000 XP Spent 2990 | 2990 Upgrades 11 | 11 Propulsion Slot 1 | 1 Utility Slot 1 | 1 Weapon Slot 1 | 1 Mass Support 1 | 1 Inventory Capacity 2 | 2 Sight Range 1 | 1 Terrain Scan Density 2 | 2 Hack Attack % 1 | 1 Hack Defense % 1 | 1 Protomatter Created 16 | 16 Integrity Restored 24 | 24 Core 24 | 24 Protomatter Decayed 96 | 96 Game ------ Seed BoreTransportInterpreter Manual? 0 Play Time 00:10:14 Cumulative 135.5 hours Start 2020.08.01 @ 01:26:34 End 2020.08.01 @ 01:31:54 Sessions 0 Manual Loads 0 Difficulty Rogue Special Mode Winter2019/RPGLIKE Game No. 58 Rogue 58 Adventurer 0 Explorer 0 Win Type - Total 2 Types 1/0/0/1/0/0/0 Lore% 76 Gallery% 68 Achievement% 64 Wizard Run 0 Options --------- ASCII 0 Keyboard 0 Movement Numpad Keybinds 0 Fullscreen 1 Font 14/SmallcapsGlow Map View 84x54 Tactical HUD 1 Map Filters NONE Filters NONE Steam 1 RUN: f05dd18d-9a92-4c9d-beb7-733416071dbb